bitfinex-derivatives/quotes_BTCF0:USTF0_20250417
["timestamp","ask_amount","ask_price","bid_price","bid_amount"]
[1744913426157,0.18049821,85314.0,85313.0,0.5611448]
[1744913426352,0.18049821,85314.0,85313.0,0.6216448]
[1744913426663,0.18057821,85314.0,85313.0,0.6216448]
[1744913426867,0.21067821,85314.0,85313.0,0.6216448]
[1744913427067,0.21067821,85314.0,85313.0,0.5914448]
[1744913427765,0.32790161,85314.0,85313.0,0.2003448]
[1744913427965,0.21067821,85314.0,85313.0,0.2003448]
[1744913428354,0.21067821,85314.0,85313.0,0.2312448]
[1744913428755,0.21067821,85314.0,85313.0,0.5920448]
[1744913428956,0.24157821,85314.0,85313.0,0.5920448]
[1744913431365,0.09228,85314.0,85313.0,0.5920448]
[1744913431766,0.09228,85314.0,85313.0,0.5119248]
[1744913435167,0.0922,85314.0,85313.0,0.5430248]
[1744913435369,0.09228,85314.0,85313.0,0.5430248]
[1744913435867,0.03128,85314.0,85313.0,0.5430248]
[1744913436256,0.0312,85314.0,85313.0,0.5430248]
[1744913436464,0.03128,85314.0,85313.0,0.5430248]
[1744913437260,0.06288,85314.0,85313.0,0.5430248]
[1744913439070,0.03128,85314.0,85313.0,0.5430248]
[1744913439673,0.0312,85314.0,85313.0,0.5430248]
[1744913439875,0.06148,85314.0,85313.0,0.5430248]
[1744913440071,0.09408,85314.0,85313.0,0.5430248]
[1744913444176,8e-05,85314.0,85313.0,0.5430248]
[1744913444377,0.03018,85314.0,85313.0,0.5430248]
[1744913444767,0.06338,85314.0,85313.0,0.5430248]
[1744913446181,0.03018,85314.0,85313.0,0.5430248]
[1744913446669,0.0301,85314.0,85313.0,0.5430248]
[1744913446868,0.03018,85314.0,85313.0,0.6231448]
[1744913447068,0.06038,85314.0,85313.0,0.6231448]
[1744913447583,0.06038,85314.0,85313.0,0.2312448]
[1744913447779,0.09088,85314.0,85313.0,0.2312448]
[1744913450886,0.09088,85314.0,85313.0,0.2311648]
[1744913454089,0.0908,85314.0,85313.0,0.2311648]
[1744913454285,0.09088,85314.0,85313.0,0.2625648]
[1744913455488,0.2081034,85314.0,85313.0,0.1511248]
[1744913455689,0.5689034,85314.0,85313.0,0.003]
[1744913455995,0.1172275,85311.0,85310.0,0.0586132]
[1744913456290,0.1172275,85311.0,85310.0,0.0616132]
[1744913456493,0.1806275,85311.0,85310.0,0.0616132]
[1744913457088,0.0634,85311.0,85310.0,0.0616132]
[1744913457292,0.06348,85311.0,85310.0,0.0616132]
[1744913457490,0.06348,85311.0,85310.0,0.0929132]
[1744913457785,0.1807075,85311.0,85310.0,0.0616132]
[1744913461007,0.1807075,85311.0,85310.0,0.1202289]
[1744913462494,0.1806275,85311.0,85310.0,0.1202289]
[1744913462701,0.1807075,85311.0,85310.0,0.1202289]
[1744913464289,0.1807075,85311.0,85310.0,0.003]
[1744913464494,0.1172426,85300.0,85299.0,0.1758627]
[1744913465003,0.06348,85311.0,85304.0,0.1172371]
[1744913465004,0.092,85305.0,85304.0,0.1172371]
[1744913465308,0.1788157,85305.0,85304.0,0.1528371]
[1744913466193,0.1788157,85305.0,85304.0,0.1202371]
[1744913468701,0.1787357,85305.0,85304.0,0.1202371]
[1744913468897,0.1788157,85305.0,85304.0,0.1202371]
[1744913469993,0.1788157,85305.0,85304.0,0.1535371]
[1744913471097,0.1788157,85305.0,85304.0,0.1202371]
[1744913473805,0.1788157,85305.0,85304.0,0.003]
[1744913474600,0.1788157,85305.0,85304.0,0.1202371]
[1744913476498,0.1788157,85305.0,85304.0,0.1510371]
[1744913476705,0.1787357,85305.0,85304.0,0.1510371]
[1744913476907,0.1788157,85305.0,85304.0,0.1829371]
[1744913477405,0.06158,85305.0,85304.0,0.1829371]
[1744913478401,0.03058,85305.0,85304.0,0.1829371]
[1744913479610,0.14947373,85319.0,85314.0,0.1172234]
[1744913479910,0.1978371,85315.0,85314.0,0.1172234]
[1744913480317,0.1978371,85315.0,85314.0,0.1810234]
[1744913480816,0.1979171,85315.0,85314.0,0.1810234]
[1744913481015,0.0806915,85315.0,85314.0,0.1810234]
[1744913482509,0.02208,85315.0,85314.0,0.1810234]
[1744913482910,0.139302,85315.0,85314.0,0.1810234]
[1744913483321,0.02208,85315.0,85314.0,0.1810234]
[1744913483912,0.02208,85315.0,85314.0,0.19188433]
[1744913484619,0.022,85315.0,85314.0,0.19188433]
[1744913484916,0.02208,85315.0,85314.0,0.19188433]
[1744913486119,0.01882413,85315.0,85314.0,0.19188433]
[1744913486320,0.01890413,85315.0,85314.0,0.19188433]
[1744913487714,0.01882413,85315.0,85314.0,0.19188433]
[1744913487910,0.01890413,85315.0,85314.0,0.19188433]
[1744913488307,0.01890413,85315.0,85314.0,0.20188433]
[1744913490712,0.01882413,85315.0,85314.0,0.20188433]
[1744913490911,0.01890413,85315.0,85314.0,0.20188433]
[1744913495215,0.01890413,85315.0,85314.0,0.28184433]
[1744913497426,0.01890413,85315.0,85314.0,0.20188433]
[1744913497614,0.01890413,85315.0,85314.0,0.16118433]
[1744913498121,0.01882413,85315.0,85314.0,0.19398433]
[1744913498418,0.01890413,85315.0,85314.0,0.19398433]
[1744913498923,0.13612613,85315.0,85314.0,0.1202234]
[1744913499219,0.01890413,85315.0,85314.0,0.1202234]
[1744913499453,0.01890413,85315.0,85314.0,0.1529234]
[1744913500121,0.01890413,85315.0,85314.0,0.1839234]
[1744913500311,0.01882413,85315.0,85314.0,0.1839234]
[1744913500511,0.01890413,85315.0,85314.0,0.19485776]
[1744913501017,0.01890413,85315.0,85314.0,0.22645776]
[1744913501425,0.01890413,85315.0,85314.0,0.19485776]
[1744913504123,0.01890413,85315.0,85314.0,0.20485776]
[1744913506223,0.01882413,85315.0,85314.0,0.20485776]
[1744913506913,0.01890413,85315.0,85314.0,0.20485776]
[1744913507121,0.01882413,85315.0,85314.0,0.20485776]
[1744913507323,0.01890413,85315.0,85314.0,0.20485776]
[1744913509418,0.01890413,85315.0,85314.0,0.17385776]
[1744913509622,0.01890413,85315.0,85314.0,0.16385776]
[1744913510030,0.05110413,85315.0,85314.0,0.16385776]
[1744913514927,0.01890413,85315.0,85314.0,0.19385776]
[1744913516222,0.05180413,85315.0,85314.0,0.19385776]
[1744913516824,0.01890413,85315.0,85314.0,0.19385776]
[1744913517029,0.01890413,85315.0,85314.0,0.20385776]
[1744913517733,0.01882413,85315.0,85314.0,0.20385776]
[1744913517927,0.01890413,85315.0,85314.0,0.28369776]
[1744913520531,0.00010801,85323.0,85316.0,0.0586103]
[1744913520738,0.0312,85330.0,85322.0,0.7216]
[1744913520935,0.0312,85330.0,85325.0,0.1172083]
[1744913521136,0.0329,85337.0,85325.0,0.1202083]
[1744913521436,0.0329,85329.0,85325.0,0.1942083]
[1744913523842,0.0329,85329.0,85328.0,0.1172041]
[1744913524042,0.0329,85329.0,85328.0,0.1970441]
[1744913524241,0.0329,85329.0,85328.0,0.2301441]
[1744913526150,0.0329,85329.0,85328.0,0.2619441]
[1744913526834,0.0329,85329.0,85328.0,0.2401441]
[1744913531851,0.0329,85329.0,85328.0,0.1603041]
[1744913532046,0.0329,85329.0,85328.0,0.2401441]
[1744913532245,0.0329,85329.0,85328.0,0.2734441]
[1744913532644,0.0318,85335.0,85334.0,0.1171959]
[1744913533147,0.0318,85335.0,85334.0,0.1201959]
[1744913534047,0.0637,85335.0,85334.0,0.1201959]
[1744913534639,0.0637,85335.0,85334.0,0.1514959]
[1744913535841,0.0637,85335.0,85334.0,0.16245583]
[1744913538448,0.0318,85335.0,85334.0,0.16245583]
[1744913538648,0.3608,85347.0,85342.0,0.058592]
[1744913538849,0.3608,85347.0,85345.0,0.1171808]
[1744913539051,0.15738313,85346.0,85345.0,0.1171808]
[1744913539253,0.15738313,85346.0,85345.0,0.1525808]
[1744913539449,0.12446313,85346.0,85345.0,0.1525808]
[1744913539754,0.12446313,85346.0,85345.0,0.5133808]
[1744913539755,0.005,85346.0,85345.0,0.5133808]
[1744913539958,0.005,85346.0,85345.0,0.58629354]
[1744913540155,0.005,85346.0,85345.0,0.50097792]
[1744913540650,0.1222594,85346.0,85345.0,0.50097792]
[1744913541653,0.1222594,85346.0,85345.0,0.12906518]
[1744913541854,0.0585959,85338.0,85337.0,0.1171852]
[1744913542045,0.0585941,85340.0,85339.0,0.117189]
[1744913542944,0.0328,85341.0,85340.0,0.1171877]
[1744913543149,0.0328,85341.0,85340.0,0.1201877]
[1744913543959,0.0328,85341.0,85340.0,0.1517877]
[1744913544658,0.1499863,85341.0,85340.0,0.1517877]
[1744913544859,0.1499863,85341.0,85340.0,0.1201877]
[1744913546263,0.0328,85341.0,85340.0,0.1201877]
[1744913547857,0.11938313,85342.0,85341.0,0.1171863]
[1744913548268,0.11938313,85342.0,85341.0,0.1840863]
[1744913548558,0.11946313,85342.0,85341.0,0.1840863]
[1744913548763,0.11938313,85342.0,85341.0,0.1840863]
[1744913548965,0.11946313,85342.0,85341.0,0.1840863]
[1744913549661,0.11938313,85342.0,85341.0,0.1840863]
[1744913550464,0.11946313,85342.0,85341.0,0.1840863]
[1744913551566,8e-05,85342.0,85341.0,0.1840863]
[1744913551958,8e-05,85342.0,85341.0,0.1201863]
[1744913552570,0.1172649,85342.0,85341.0,0.1201863]
[1744913553161,0.1172649,85342.0,85341.0,0.003]
[1744913553162,0.1476649,85342.0,85341.0,0.003]
[1744913553358,0.1171904,85338.0,85337.0,0.1171918]
[1744913553762,0.234382,85338.0,85337.0,0.1171918]
[1744913554157,0.234382,85338.0,85337.0,0.1201918]
[1744913554466,0.234382,85338.0,85337.0,0.003]
[1744913554693,0.234382,85338.0,85337.0,0.1171918]
[1744913555051,0.234382,85338.0,85337.0,0.1201918]
[1744913559867,0.234382,85338.0,85337.0,0.003]
[1744913560064,0.244382,85338.0,85337.0,0.1201918]
[1744913561462,0.275582,85338.0,85337.0,0.1201918]
[1744913564672,0.265582,85338.0,85337.0,0.1201918]
[1744913565065,0.0897958,85338.0,85337.0,0.1201918]
[1744913565260,0.0897958,85338.0,85337.0,0.1509918]
[1744913565461,0.0898758,85338.0,85337.0,0.1509918]
[1744913566564,0.20925893,85338.0,85337.0,0.1509918]
[1744913566962,0.23955893,85338.0,85337.0,0.1509918]
[1744913569470,0.23955893,85338.0,85337.0,0.1201918]
[1744913569775,0.23955893,85338.0,85337.0,0.003]
[1744913569967,0.23955893,85338.0,85337.0,0.1201918]
[1744913570169,0.1201758,85338.0,85337.0,0.1201918]
[1744913571368,0.1201758,85338.0,85337.0,0.1505918]
[1744913573579,0.4809758,85338.0,85337.0,0.1505918]
[1744913574376,0.4809758,85338.0,85337.0,0.1201918]
[1744913575579,0.1171932,85336.0,85335.0,0.11736956]
[1744913575810,0.1271932,85336.0,85335.0,0.00017576]
[1744913576077,0.1172165,85319.0,85318.0,0.1758238]
[1744913576274,0.4780165,85319.0,85318.0,0.1758238]
[1744913576477,0.4780165,85319.0,85318.0,0.2373238]
[1744913576874,0.5415165,85319.0,85318.0,0.24620847]
[1744913577275,0.5415165,85319.0,85318.0,0.10199337]
[1744913577771,0.5415165,85319.0,85318.0,0.003]
[1744913577975,0.1172234,85314.0,85313.0,0.17882229]
[1744913578278,0.1172371,85304.0,85303.0,0.058619]
[1744913578477,0.4980371,85304.0,85303.0,0.058619]
[1744913578678,0.4780371,85304.0,85303.0,0.058619]
[1744913578874,0.4780371,85304.0,85302.0,0.17806607]
[1744913579182,0.1821385,85303.0,85302.0,0.08106607]
[1744913579380,0.1921385,85303.0,85302.0,0.08106607]
[1744913582379,0.1921385,85303.0,85302.0,0.003]
[1744913583083,0.1172385,85303.0,85302.0,0.1202399]
[1744913583284,0.1173185,85303.0,85302.0,0.1202399]
[1744913584223,0.1502185,85303.0,85302.0,0.1202399]
[1744913584383,8e-05,85303.0,85302.0,0.1202399]
[1744913584678,0.11916246,85308.0,85307.0,0.117233]
[1744913584880,0.11916246,85308.0,85307.0,0.478033]
[1744913585382,0.0586146,85310.0,85309.0,0.1172303]
[1744913585783,0.1172236,85314.0,85313.0,0.1172234]
[1744913586388,0.1172236,85314.0,85313.0,0.1535234]
[1744913586587,0.1173036,85314.0,85313.0,0.1535234]
[1744913586788,0.1498036,85314.0,85313.0,0.1535234]
[1744913588438,0.1173036,85314.0,85313.0,0.1535234]
[1744913588581,0.08924431,85315.0,85313.0,0.1535234]
[1744913588785,0.1172234,85314.0,85313.0,0.1535234]
[1744913588975,0.1173034,85314.0,85313.0,0.1535234]
[1744913589383,8e-05,85314.0,85313.0,0.1535234]
[1744913590290,0.1172192,85318.0,85317.0,0.1758254]
[1744913590688,0.1172192,85318.0,85317.0,0.2344343]
[1744913591177,0.1172192,85318.0,85317.0,0.2374343]
[1744913592191,0.0321,85319.0,85318.0,0.1172179]
[1744913592392,0.0586081,85320.0,85319.0,0.1172165]
[1744913592597,0.0586081,85320.0,85319.0,0.1491165]
[1744913593190,0.0586081,85320.0,85319.0,0.1521165]
[1744913593496,0.0907081,85320.0,85319.0,0.1521165]
[1744913596999,0.1216081,85320.0,85319.0,0.1521165]
[1744913597185,0.1216081,85320.0,85319.0,0.0349]
[1744913598285,0.1216081,85320.0,85319.0,0.003]
[1744913598686,0.1316081,85320.0,85319.0,0.003]
[1744913599292,0.1172371,85304.0,85303.0,0.4780378]
[1744913599492,0.1172371,85304.0,85303.0,0.3608]
[1744913599693,0.1172412,85301.0,85300.0,0.4780412]
[1744913600195,0.1475412,85301.0,85300.0,0.4810412]
[1744913600593,0.1789412,85301.0,85300.0,0.5420412]
[1744913602196,0.1789412,85301.0,85300.0,0.5119412]
[1744913603696,0.1789412,85301.0,85300.0,0.5449412]
[1744913605292,0.0314,85301.0,85300.0,0.5449412]
[1744913605498,0.0586199,85302.0,85301.0,0.1758584]
[1744913605993,0.06430801,85306.0,85304.0,0.1758542]
[1744913605994,0.1172385,85305.0,85304.0,0.1758542]
[1744913606194,0.2058571,85305.0,85304.0,0.1788542]
[1744913606583,0.1758571,85305.0,85304.0,0.1788542]
[1744913607089,0.1759371,85305.0,85304.0,0.003]
[1744913607289,0.1758571,85305.0,85304.0,0.1202371]
[1744913607489,0.1759371,85305.0,85304.0,0.1202371]
[1744913607684,0.2075371,85305.0,85304.0,0.1202371]
[1744913609395,0.2075371,85305.0,85304.0,0.003]
[1744913609799,0.2075371,85305.0,85304.0,0.1202371]
[1744913611295,0.0902986,85305.0,85304.0,0.1202371]
[1744913611497,8e-05,85305.0,85304.0,0.1202371]
[1744913611691,0.1172347,85306.0,85305.0,0.1172357]
[1744913611892,0.0586159,85308.0,85307.0,0.117233]
[1744913612091,0.0586159,85308.0,85307.0,0.481033]
[1744913615298,0.00028377,85309.0,85308.0,0.1172316]
[1744913615796,0.11740606,85309.0,85308.0,0.1172316]
[1744913616001,0.11748606,85309.0,85308.0,0.1172316]
[1744913616198,0.14858606,85309.0,85308.0,0.1202316]
[1744913616402,0.18078606,85309.0,85308.0,0.1202316]
[1744913617698,0.14858606,85309.0,85308.0,0.1202316]
[1744913618102,0.11740606,85309.0,85308.0,0.1522316]
[1744913618299,0.11748606,85309.0,85308.0,0.1522316]
[1744913618501,0.00025576,85309.0,85308.0,0.1522316]
[1744913619005,0.11748606,85309.0,85308.0,0.1522316]
[1744913619506,0.08945906,85312.0,85311.0,0.1172275]
[1744913619803,0.11916246,85318.0,85317.0,0.1172193]
[1744913620006,0.11916246,85318.0,85317.0,0.4780193]
[1744913620209,0.11916246,85318.0,85317.0,0.49238277]
[1744913620500,0.11924246,85318.0,85317.0,0.49238277]
[1744913620708,0.11916246,85318.0,85317.0,0.49238277]
[1744913620905,0.11924246,85318.0,85317.0,0.49238277]
[1744913621705,0.11924246,85318.0,85317.0,0.52438277]
[1744913622402,0.11924246,85318.0,85317.0,0.47438277]
[1744913622801,8e-05,85318.0,85317.0,0.47438277]
[1744913623710,0.00017539,85326.0,85325.0,0.1172083]
[1744913623906,0.0002834,85326.0,85325.0,0.4780083]
[1744913624211,0.00017539,85326.0,85325.0,0.4810083]
[1744913624413,0.00025539,85326.0,85325.0,0.4810083]
[1744913624608,0.11746229,85326.0,85325.0,0.5439083]
[1744913625003,0.00025539,85326.0,85325.0,0.5439083]
[1744913625400,0.06575539,85326.0,85325.0,0.5439083]
[1744913630509,0.21316229,85326.0,85325.0,0.5439083]
[1744913631109,0.21316229,85326.0,85325.0,0.5137083]
[1744913631510,0.09595539,85326.0,85325.0,0.5137083]
[1744913632109,0.21316229,85326.0,85325.0,0.5137083]
[1744913633915,0.21316229,85326.0,85325.0,0.3638]
[1744913634311,0.21316229,85326.0,85325.0,0.4810083]
[1744913635610,0.21316229,85326.0,85325.0,0.3638]
[1744913636016,0.1172179,85318.0,85317.0,0.00017576]
[1744913636206,0.4780179,85318.0,85317.0,0.00317576]
[1744913636412,0.5501179,85318.0,85317.0,0.00317576]
[1744913636640,0.5501179,85318.0,85317.0,0.12039506]
[1744913637115,0.5401179,85318.0,85317.0,0.12039506]
[1744913637503,0.5401179,85318.0,85317.0,0.00317576]
[1744913637720,0.1172206,85316.0,85315.0,0.1172219]
[1744913638220,0.1172206,85316.0,85315.0,0.1202219]
[1744913638417,0.1172206,85316.0,85315.0,0.003]
[1744913639013,0.1172206,85316.0,85315.0,0.120222]
[1744913639208,0.1172316,85308.0,85307.0,0.11740846]
[1744913639821,0.0621,85309.0,85308.0,0.1172316]
[1744913640009,0.1793303,85309.0,85308.0,0.1484316]
[1744913640215,0.1793303,85309.0,85308.0,0.1514316]
[1744913640617,0.0621,85309.0,85308.0,0.1514316]
[1744913640817,0.1794103,85309.0,85308.0,0.1829316]
[1744913641118,0.1793303,85309.0,85308.0,0.1829316]
[1744913641318,0.1794103,85309.0,85308.0,0.1829316]
[1744913645628,0.06218,85309.0,85308.0,0.1829316]
[1744913645820,0.1475103,85309.0,85308.0,0.1829316]
[1744913646019,0.1173103,85309.0,85308.0,0.1829316]
[1744913646220,0.1172303,85309.0,85308.0,0.1829316]
[1744913646423,0.1173103,85309.0,85308.0,0.1829316]
[1744913646615,0.1499103,85309.0,85308.0,0.1829316]
[1744913648619,0.03,85313.0,85312.0,0.1172261]
[1744913649131,0.03,85313.0,85312.0,0.1847261]
[1744913649732,0.088613,85313.0,85312.0,0.1847261]
[1744913650531,0.06058,85313.0,85312.0,0.1847261]
[1744913650920,0.1778048,85313.0,85312.0,0.1847261]
[1744913651924,0.06058,85313.0,85312.0,0.1847261]
[1744913652122,8e-05,85313.0,85312.0,0.1847261]
[1744913653122,0.0586074,85321.0,85320.0,0.1172151]
[1744913653430,0.0586074,85321.0,85320.0,0.4780151]
[1744913654034,0.0905074,85321.0,85320.0,0.5412151]
[1744913654224,0.0905074,85321.0,85320.0,0.5442151]
[1744913657128,0.0319,85321.0,85320.0,0.5442151]
[1744913658228,0.1491138,85321.0,85320.0,0.1834151]
[1744913658424,0.1491138,85321.0,85320.0,0.1526151]
[1744913658622,0.1817138,85321.0,85320.0,0.1526151]
[1744913661528,0.1172165,85319.0,85318.0,0.0586084]
[1744913661928,0.1814165,85319.0,85318.0,0.0586084]
[1744913662130,0.1814165,85319.0,85318.0,0.0616084]
[1744913662725,0.1814165,85319.0,85318.0,0.1788235]
[1744913663837,0.1814165,85319.0,85318.0,0.0616084]
[1744913667339,0.1814165,85319.0,85318.0,0.0916084]
[1744913672932,0.1814165,85319.0,85318.0,0.1221084]
[1744913673339,0.1814965,85319.0,85318.0,0.1221084]
[1744913675842,8e-05,85319.0,85318.0,0.1221084]
[1744913676242,0.0586076,85320.0,85319.0,0.1758213]
[1744913676640,0.0321,85322.0,85321.0,0.1172138]
[1744913676846,0.00010801,85323.0,85322.0,0.1172124]
[1744913677138,0.00017539,85326.0,85324.0,0.1172096]
[1744913677343,0.11738229,85326.0,85325.0,0.0624]
[1744913677543,0.11738229,85326.0,85325.0,0.1796083]
[1744913678154,0.11738229,85326.0,85325.0,0.1826083]
[1744913680256,0.00017539,85326.0,85325.0,0.1826083]
[1744913680953,0.00025539,85326.0,85325.0,0.1826083]
[1744913681196,0.11746229,85326.0,85325.0,0.1826083]
[1744913681655,0.00025539,85326.0,85325.0,0.1826083]
[1744913682558,0.11966211,85326.0,85325.0,0.1826083]
[1744913684148,0.11958211,85326.0,85325.0,0.1826083]
[1744913685151,0.11966211,85326.0,85325.0,0.1826083]
[1744913686850,0.00025539,85326.0,85325.0,0.1826083]
[1744913687851,1e-08,85326.0,85325.0,0.1826083]
[1744913688053,1e-08,85326.0,85325.0,0.1926083]
[1744913688361,8.001e-05,85326.0,85325.0,0.1826083]
[1744913689261,0.00017576,85334.0,85333.0,0.1171973]
[1744913689556,0.00017576,85334.0,85333.0,0.4779973]
[1744913689750,0.00017576,85334.0,85333.0,0.5738973]
[1744913690258,0.00017576,85334.0,85333.0,0.5768973]
[1744913691956,0.00017576,85334.0,85333.0,0.5438973]
[1744913692461,0.11737166,85334.0,85333.0,0.5438973]
[1744913692883,0.14807166,85334.0,85333.0,0.5438973]
[1744913693055,0.03087576,85334.0,85333.0,0.5438973]
[1744913693960,0.14807166,85334.0,85333.0,0.5438973]
[1744913694165,0.00017576,85334.0,85333.0,0.5438973]
[1744913694862,0.1172069,85327.0,85325.0,0.05877946]
[1744913695063,0.1172069,85326.0,85325.0,0.11738386]
[1744913695262,0.1172069,85326.0,85325.0,0.00317576]
[1744913695462,0.1172069,85326.0,85325.0,0.12038406]
[1744913696958,0.4194,85331.0,85327.0,0.0586025]
[1744913697155,0.4194,85331.0,85330.0,0.1172014]
[1744913697966,0.1172028,85329.0,85328.0,0.033]
[1744913698266,0.1172028,85329.0,85328.0,0.1532041]
[1744913699967,0.1172028,85329.0,85328.0,0.003]
[1744913700363,0.1172028,85329.0,85314.0,0.0305]
[1744913700364,0.1172289,85310.0,85309.0,0.1172286]
[1744913700568,0.1172357,85305.0,85304.0,0.0305]
[1744913700754,0.117244,85299.0,85298.0,0.00896118]
[1744913700953,0.117244,85299.0,85298.0,0.1172454]
[1744913701158,0.1758635,85301.0,85300.0,0.1172426]
[1744913702158,0.1758635,85301.0,85300.0,0.1202426]
[1744913702388,0.1758635,85301.0,85300.0,0.003]
[1744913703066,0.1758635,85301.0,85300.0,0.1202426]
[1744913703263,0.1758635,85301.0,85300.0,0.003]
[1744913703658,0.1758635,85301.0,85300.0,0.1202426]
[1744913703857,0.1758635,85301.0,85300.0,0.003]
[1744913704060,0.117244,85299.0,85298.0,0.23700262]
[1744913704266,0.1172522,85293.0,85292.0,0.19728771]
[1744913704675,0.1172605,85287.0,85283.0,0.0636326]
[1744913704862,0.1172605,85287.0,85286.0,0.47524342]
[1744913705062,0.1172605,85287.0,85286.0,0.1172619]
[1744913705273,0.1172605,85287.0,85286.0,0.1202619]
[1744913707367,0.117254,85292.0,85291.0,0.1172536]
[1744913707670,0.117334,85292.0,85291.0,0.1172536]
[1744913708062,0.117334,85292.0,85291.0,0.1492536]
[1744913708263,0.117334,85292.0,85291.0,0.1522536]
[1744913708776,0.1481522,85293.0,85292.0,0.1172536]
[1744913708977,0.0309,85293.0,85292.0,0.1492536]
[1744913709273,0.0309,85293.0,85292.0,0.1522536]
[1744913709471,8e-05,85293.0,85292.0,0.1522536]
[1744913709662,0.11940672,85302.0,85301.0,0.1172412]
[1744913710060,0.11940672,85302.0,85301.0,0.1202412]
[1744913710260,0.11940672,85302.0,85301.0,0.1838412]
[1744913710669,0.23664662,85302.0,85301.0,0.1515412]
[1744913710866,0.23672662,85302.0,85301.0,0.1202412]
[1744913711671,0.26712662,85302.0,85301.0,0.1202412]
[1744913711975,0.1172577,85289.0,85288.0,0.4780591]
[1744913712277,0.1172577,85289.0,85288.0,0.3638]
[1744913712466,0.1172577,85289.0,85288.0,0.4810591]
[1744913712867,0.1776577,85289.0,85288.0,0.4810591]
[1744913716572,0.1172646,85284.0,85283.0,0.005]
[1744913716875,0.1172646,85284.0,85283.0,0.122266]
[1744913717075,0.1172646,85284.0,85283.0,0.125266]
[1744913717576,0.1816646,85284.0,85283.0,0.008]
[1744913717874,0.1816646,85284.0,85283.0,0.125266]
[1744913719972,0.1816646,85284.0,85283.0,0.155366]
[1744913721872,0.1816646,85284.0,85283.0,0.008]
[1744913722263,0.1816646,85284.0,85283.0,0.125266]
[1744913722868,0.2402969,85284.0,85282.0,0.0586336]
[1744913723079,0.2402969,85284.0,85283.0,0.117266]
[1744913723874,0.117266,85283.0,85282.0,0.1202674]
[1744913724568,0.0586363,85279.0,85270.0,0.0586417]
[1744913724766,0.0586363,85279.0,85267.0,0.1172879]
[1744913724767,0.0586371,85277.0,85267.0,0.1172879]
[1744913724980,0.1172894,85268.0,85267.0,0.1172879]
[1744913725175,0.1172894,85268.0,85267.0,0.1202879]
[1744913725772,0.2093894,85268.0,85267.0,0.1202879]
[1744913726081,0.3608,85274.0,85267.0,0.0616433]
[1744913726375,8e-05,85268.0,85267.0,0.2095313]
[1744913726574,0.1173666,85268.0,85267.0,0.2095313]
[1744913729274,0.1173666,85268.0,85267.0,0.1789313]
[1744913730182,0.1493666,85268.0,85267.0,0.1789313]
[1744913730378,0.1818666,85268.0,85267.0,0.1789313]
[1744913730589,0.1173666,85268.0,85267.0,0.1789313]
[1744913731078,8e-05,85268.0,85267.0,0.003]
[1744913731770,0.1172826,85271.0,85267.0,0.003]
[1744913731976,0.1172842,85270.0,85268.0,0.0314]
[1744913732171,0.1172842,85270.0,85268.0,0.0344]
[1744913732572,0.1172852,85269.0,85268.0,0.0344]
[1744913733087,0.1818852,85269.0,85268.0,0.0344]
[1744913733580,0.1172852,85269.0,85268.0,0.0344]
[1744913736883,0.1172847,85270.0,85268.0,0.0344]
[1744913737088,0.1172852,85269.0,85268.0,0.0344]
[1744913737285,0.0586398,85273.0,85268.0,0.0344]
[1744913737586,0.1173652,85269.0,85268.0,0.0344]
[1744913737975,8e-05,85269.0,85268.0,0.0344]
[1744913738175,0.1173652,85269.0,85268.0,0.0344]
[1744913740782,8e-05,85269.0,85268.0,0.0344]
[1744913740980,0.1173652,85269.0,85268.0,0.0344]
[1744913741983,8e-05,85269.0,85268.0,0.0344]
[1744913742176,8e-05,85269.0,85268.0,0.1516866]
[1744913742382,8e-05,85269.0,85268.0,0.0344]
[1744913742791,0.1173652,85269.0,85268.0,0.0344]
[1744913743196,0.1173652,85269.0,85268.0,0.1516866]
[1744913743379,8e-05,85269.0,85268.0,0.1516866]
[1744913743691,0.1173652,85269.0,85268.0,0.1516866]
[1744913743987,8e-05,85269.0,85268.0,0.1516866]
[1744913744188,8e-05,85269.0,85268.0,0.1828866]
[1744913746293,0.1173652,85269.0,85268.0,0.1828866]
[1744913746795,8e-05,85269.0,85268.0,0.1828866]
[1744913747693,0.08941781,85271.0,85270.0,0.1172839]
[1744913747991,0.08941781,85271.0,85270.0,0.4780839]
[1744913748191,0.08941781,85271.0,85270.0,0.5429839]
[1744913749496,0.08949781,85271.0,85270.0,0.5429839]
[1744913750287,0.0586348,85281.0,85270.0,0.5429839]
[1744913750288,0.3608,85321.0,85270.0,0.6757]
[1744913750487,0.0586077,85320.0,85303.0,0.1172385]
[1744913750687,0.0942,85320.0,85310.0,0.1172289]
[1744913750888,0.0942,85320.0,85310.0,0.4780289]
[1744913750889,0.21088529,85311.0,85310.0,0.4780289]
[1744913751091,0.21088529,85311.0,85310.0,0.4810289]
[1744913751489,0.21096529,85311.0,85310.0,0.5456289]
[1744913751787,0.21088529,85318.0,85317.0,0.1172193]
[1744913751991,0.21088529,85318.0,85317.0,0.5576193]
[1744913752193,0.21088529,85318.0,85317.0,0.5606193]
[1744913752394,0.21088529,85318.0,85317.0,0.6251193]
[1744913753902,0.21088529,85318.0,85317.0,0.6340199]
[1744913754585,0.24378529,85318.0,85317.0,0.6340199]
[1744913755891,0.27458529,85318.0,85317.0,0.6340199]
[1744913756401,0.0637,85318.0,85317.0,0.6340199]
[1744913757195,0.1809179,85318.0,85317.0,0.5138193]
[1744913757500,0.0637,85318.0,85317.0,0.5138193]
[1744913758992,0.00017587,85319.0,85318.0,0.1172179]
[1744913759193,0.0585943,85340.0,85318.0,0.1172179]
[1744913759194,0.005,85346.0,85318.0,0.0362]
[1744913759392,0.032,85353.0,85352.0,0.1171712]
[1744913759596,0.032,85353.0,85352.0,0.1974912]
[1744913759916,0.032,85353.0,85352.0,0.5582912]
[1744913760200,0.032,85353.0,85352.0,0.3638]
[1744913760401,0.032,85353.0,85352.0,0.003]
[1744913760402,0.1491698,85353.0,85352.0,0.003]
[1744913761299,0.1491698,85353.0,85352.0,0.1201712]
[1744913763800,0.032,85353.0,85352.0,0.1201712]
[1744913764203,0.0623,85353.0,85352.0,0.1201712]
[1744913764403,0.06238,85353.0,85352.0,0.1201712]
[1744913765305,0.1795498,85353.0,85352.0,0.1201712]
[1744913766902,0.06238,85353.0,85352.0,0.1201712]
[1744913767102,0.1795498,85353.0,85352.0,0.1201712]
[1744913767402,0.06238,85353.0,85352.0,0.1201712]
[1744913768603,0.03208,85353.0,85352.0,0.1201712]
[1744913768905,0.0307,85355.0,85354.0,0.1171684]
[1744913769209,0.1478671,85355.0,85354.0,0.1201684]
[1744913769441,0.1808671,85355.0,85354.0,0.1201684]
[1744913769599,0.1808671,85355.0,85354.0,0.1849684]
[1744913770001,0.2121671,85355.0,85354.0,0.1849684]
[1744913771004,0.2121671,85355.0,85354.0,0.1528684]
[1744913771910,0.022,85356.0,85355.0,0.1171671]